{"text_format":"1","workbook":"xlsx","n_sheets":1,"sheets":["price bid "],"not_rendered":{"charts":0,"images":0,"macros":1,"external_links":0,"defined_names":1,"comments":0,"pivot_tables":0},"unopened":[],"bounds":{"document_bytes":16777216,"sheet_cells":100000,"rows_first":2000,"rows_last":500,"rows_between":2000,"halvings":0,"cell_chars":16384,"cell_head_chars":4096},"cells_cut":0,"cells_raw":0,"read":"whole","date_system":"1900"}

{"sheet":"price bid ","index":0,"n_rows":55,"n_cols":8,"rows_kept":55,"cut":false,"hidden":false,"merged":[[51,2,51,7],[49,2,49,7],[50,2,50,7],[0,0,0,7],[3,0,3,7],[1,0,1,7],[2,0,2,7],[4,0,4,3],[4,5,4,7],[47,3,47,7],[46,4,46,6]]}
["    BHARAT HEAVY ELECTRICAL LIMITED , JHANSI              "]
["FACTORY CIVIL DEPARTMENT"]
["PRICE BID (JS 146)"]
["Name of work:-  Misc. civil maintenance work in factory area. "]
["Tender Enq No-FCX/TW/22/04"]
["Sl. No.","DSR 2016 Ref.","Description of Work","% Allocation (Item-wise)","Unit ","Quantity ","Rate per Unit (in Rs.)","Amount (in Rs.)"]
[1,"1.1.1/68","By Mechanical Transport including loading, unloading and stacking:  Lime, moorum, building rubbish",0.15000467109999999,"Cum",12,{"$f":"H7/F7","v":0},{"$f":"ROUND($H$47*D7%,2)","v":0}]
[2,"1.1.2/68","By Mechanical Transport including loading, unloading and stacking:  Carriage of Earth  up 1 km. ",0.31247795630000003,"Cum",20,{"$f":"H8/F8","v":0},{"$f":"ROUND($H$47*D8%,2)","v":0}]
[3,"2.6.1/76","Earth work in excavation by mechanical means (Hydraulic excavator)/manual means over areas (exceeding 30 cm in depth, 1.5 m in width as well as 10 sqm on plan) including getting out and disposal of excavated earth lead upto 50 m and lift upto 1.5 m, as directed by Engineer-in-charge.",0.40020946299999999,"Cum",20,0,{"$f":"ROUND($H$47*D9%,2)","v":0}]
[4,"2.25/79","Filling available excavated earth (excluding rock) in trenches, plinth, sides of foundations etc. in layers not exceeding 20cm in depth, consolidating each deposited layer by ramming and watering, lead up to 50 m and lift upto 1.5 m. ",0.1997869789,"Cum",10,0,0]
[5,"4.1.3/88","Providing and laying in position cement concrete of specified grade excluding the cost of centering and shuttering - All work up to plinth level : \"1:2:4 (1 cement : 2 coarse sand (zone-III) : 4 graded stone aggregate 20 mm nominal size). ",3.0843423606,"Cum",6,0,0]
[6,"4.1.6/88","Providing and laying in position cement concrete of specified grade excluding the cost of centering and shuttering - All work up to plinth level :  1:3:6 (1 Cement : 3 coarse sand (zone-III): 6 graded stone aggregate 40 mm nominal size). ",5.1492611358999998,"Cum",10,0,0]
[7,"4.1.8/88","Providing and laying in position cement concrete of specified grade excluding the cost of centering and shuttering - All work up to plinth level :  1:4:8 (1 Cement : 4 coarse sand (zone-III) : 8 graded stone aggregate 40 mm nominal size)",5.1988464370000003,"Cum",10,0,0]
[8,"5.1.3/97","Providing and laying in position specified grade of reinforced cement concrete, excluding the cost of centering, shuttering, finishing and reinforcement - All work up to plinth level : 1:2:4 (1 cement : 2 coarse sand : 4 graded stone aggregate 20 mm  nominal size). ",11.2047210552,"Cum",20,0,0]
[9,"5.3/97","Reinforced cement concrete work in beams, suspended floors, roofs having slope up to 15° landings, balconies, shelves, chajjas, lintels, bands, plain window sills, staircases and spiral stair cases above plinth level up to floor five level, excluding the cost of centering, shuttering, finishing and reinforcement, with 1:1.5:3 (1 cement: 1.5 coarse sand (zone-III): 3 graded stone aggregate 20 mm nominal size). ",5.8598672754000001,"Cum",8,0,0]
[10,"5.9.1/98","Centering and shuttering including strutting, propping etc. and removal of form for all heights : Foundations, footings, bases of columns, etc. for mass concrete ",4.3949957822999997,"Sqm",150,0,0]
[11,"5.9.3/98","Centering and shuttering including strutting, propping etc. and removal of form for all heights :  Suspended floors, roofs, landings, balconies and access platform ",6.6327688219000001,"Sqm",100,0,0]
[12,"6.1.2/111","Brick work with common burnt clay F.P.S. (non modular) bricks of class designation 7.5 in foundation and plinth in:  Cement mortar 1:6 (1 cement : 6 coarse sand) ",3.1117755356000001,"Cum",5,0,0]
[13,"6.4.2/111","Brick work with common burnt clay F.P.S. (non modular) bricks of class designation 7.5 in superstructure above plinth level up to floor V level in all shapes and sizes in : Cement mortar 1:6 (1 cement : 6 coarse sand) ",9.0529382377999994,"Cum",12,0,0]
[14,"6.8/111","Brick work 7 cm thick with common burnt clay F.P.S. (non modular) brick of class designation 7.5 in cement mortar 1:3 (1 cement : 3 coarse sand) in superstructure above plinth level and upto floor five level. ",0.80996421569999999,"Sqm",12,0,0]
[15,"6.13.2/112","Half brick masonry with common burnt clay F.P.S. (non modular) bricks of class designation 7.5 in superstructure above plinth level up to floor V level. Cement mortar 1:4 (1 cement :4 coarse sand)",1.7962875073,"Sqm",20,0,0]
[16,"7.1.1/119","Random rubble masonry with hard stone in foundation and plinth including levelling up with cement concrete 1:6:12 (1 cement : 6 coarse sand : 12 graded stone aggregate 20 mm nominal size) upto plinth level with :  Cement mortar 1:6 (1 cement : 6 coarse sand) ",1.0596034078000001,"Cum",2,0,0]
[17,"11.1.2/191","Brick on edge flooring with bricks of class designation 7.5 on a bed of 12 mm cement mortar, including filling the joints with same mortar, with common burnt clay non modular bricks: 1:6 (1cement : 6 coarse sand) ",0.79941800519999995,"Sqm",10,0,0]
[18,"11.2/191","Dry brick on edge flooring in required pattern with bricks of class designation 7.5 on a bed of 12 mm mud mortar, including filling joints with sand, with common burnt clay non modular bricks. ",0.73663008149999998,"Sqm",10,0,0]
[19,"11.3.1/191","Cement concrete flooring 1:2:4 (1 cement : 2 coarse sand : 4 graded stone aggregate) finished with a floating coat of neat cement, including cement slurry, but excluding the cost of nosing of steps etc. complete.40 mm thick with 20 mm nominal size stone aggregate",1.1740324923000001,"Sqm",30,0,0]
[20,"11.4/191","52 mm thick cement concrete flooring with concrete hardener topping, under layer 40 mm thick cement concrete 1:2:4 (1 cement : 2 coarse sand : 4 graded stone aggregate 20 mm nominal size) and top layer 12 mm thick cement hardener consisting of mix 1:2 (1 cement hardener mix : 2 graded stone aggregate 6 mm nominal size) by volume, hardening compound mixed @ 2 litre per 50 kg of cement or as per manufacturer's specifications. This includes cost of cement slurry, but excluding the cost of nosing of steps etc. complete. ",0.62840352880000006,"Sqm",10,0,0]
[21,"13.1.2/227","12 mm cement plaster of mix :  1:6 (1 cement: 6 fine sand) ",1.6145806542000001,"Sqm",75,0,0]
[22,"13.2.2/227","15 mm cement plaster on the rough side of single or half brick wall of mix :  1:6 (1 cement: 6 fine sand) ",0.98827429290000002,"Sqm",40,0,0]
[23,"13.3.2/227","20 mm cement plaster of mix : 1:6 (1 cement: 6 fine sand)",0.4334940531,"Sqm",15,0,0]
[24,"13.8.2/227","15 mm cement plaster on rough side of single or half brick wall finished with a floating coat of neat cement of mix :  1:4 (1 cement: 4 fine sand) ",0.43590102949999998,"Sqm",15,0,0]
[25,"15.2.1/253","Demolishing cement concrete manually/ by mechanical means including disposal of material within 50 metres lead as per direction of Engineer - in - charge.  Nominal concrete 1:3:6 or richer mix (i/c equivalent design mix) ",1.5840763998,"Cum",10,0,0]
[26,"15.2.2/253","Demolishing cement concrete manually/ by mechanical means including disposal of material within 50 metres lead as per direction of Engineer - in - charge. Nominal concrete 1:4:8 or leaner mix (i/c equivalent design mix) ",0.97732771409999997,"Cum",10,0,0]
[27,"15.3/253","Demolishing R.C.C. work manually/ by mechanical means including stacking of steel bars and disposal of unserviceable material within 50 metres lead as per direction of Engineer - in- charge.",3.4664033810000001,"Cum",15,0,0]
[28,"15.7.4/253","Demolishing brick work manually/ by mechanical means including stacking of serviceable material and disposal of unserviceable material within 50 metres lead as per direction of Engineer-in-charge.",1.3389302300999999,"Cum",10,0,0]
[29,"15.9.2/253","Demolishing stone rubble masonry manually/ by mechanical means including stacking of serviceable material and disposal of unserviceable material within 50 metres lead as per direction of Engineer-in-charge :  In cement mortar",1.1184734413999999,"Cum",7,0,0]
[30,"15.12.1/254","Dismantling doors, windows and clerestory windows (steel or wood) shutter including chowkhats, architrave, holdfasts etc. complete and stacking within 50 metres lead : Of area 3 sq. metres and below ",0.25078627920000002,"Each",10,0,0]
[31,"15.56/258","Dismantling old plaster or skirting raking out joints and cleaning the surface for plaster including disposal of rubbish to the dumping ground within 50 metres lead. ",7.1176593699999999E-2,"Sqm",20,0,0]
[32,"0293/7","Stone Aggregate (Single size) : 40 mm nominal size ",2.1750963293000001,"Cum",10,0,0]
[33,"0295/8","Stone Aggregate (Single size) : 20 mm nominal size ",1.809677604,"Cum",8,0,0]
[34,"0297/8","Stone agrgregate - 10 MM",3.3931455074999999,"Cum",15,0,0]
[35,"0982/15","Coarse sand",3.1321434804999999,"Cum",15,0,0]
[36,"983/15","Fine Sand",1.5869457062000001,"Cum",12,0,0]
[37,"2602/27","FPS Bricks class designation 7.5",2.3490992693999999,"1000 Nos ",3,0,0]
[38,"DSR 2016","item covered in DSR 2016 but not covered above",3.1775265028000002,"DSR",20000,0,0]
[39,"5.22.6","Reinforcement with TMT Bar",1.9555769109000001,"Kg",{"$f":"(F14+F15)*40","v":1120},0,0]
[40,null,"Work for unloading the cement bags(50 kg) from trucks and  stacking it inside closed shed on wooden pallets as per instruction  of Engineer -in charge.",6.3850296706999998,"Nos ",6000,0,0]
[null,null,"Total ",{"$f":"SUM(D7:D46)","v":99.999999999900041},"Total amount quoted by bidder"]
[null,null,"IN WORDS",{"$f":"rup(H47)","v":0}]
[null,null,"Note -GST extra as applicable"]
[null,null,"1. Bidder has to quote in above unlocked cell (H-47) only. Item rate shall be calculated automatically. Calculated item rates upto four decimal points may be adjusted w.r.t. gross total amount and it shall be the itemwise final rate for  execution of contract and all other purposes."]
[null,null,"2. Quoted gross total amount should be considered only if quoted in this excel sheet and print out of this should only be considered for evaluation.  If Price is quoted in any other format other than the Excel Sheet enclosed to the NIT , the offer of the bidder  will be rejected"]
[null,null,"3.During the execution , the quantity of various items may vary to any extent depending on requirement of work/site and as per discretion of BHEL."]
[]
[]
[null,null,null,null,"(Signature and Seal of  Contractor  )"]